[Event "*** Titled Tuesday Blitz"]
[Site "Chess.com"]
[Date "2018.01.02"]
[Round "7"]
[White "walkingcreep"]
[Black "theblitzchamp"]
[Result "0-1"]
[WhiteElo "2412"]
[BlackElo "2453"]
[TimeControl "180+2"]
[EndTime "14:32:29 PST"]
[Termination "theblitzchamp won by resignation"]

1. e4 {[%clk 0:03:01.9]} 1... e5 {[%clk 0:03:01]} 2. Nf3 {[%clk 0:03:00.8]} 2...
Nc6 {[%clk 0:03:02.2]} 3. Bc4 {[%clk 0:03:01.8]} 3... Nf6 {[%clk 0:03:03.3]} 4.
d3 {[%clk 0:03:02.2]} 4... Be7 {[%clk 0:03:03.8]} 5. O-O {[%clk 0:02:59.6]} 5...
O-O {[%clk 0:03:05.1]} 6. c3 {[%clk 0:02:56.4]} 6... d5 {[%clk 0:03:02.2]} 7.
exd5 {[%clk 0:02:56.5]} 7... Nxd5 {[%clk 0:03:03.4]} 8. a4 {[%clk 0:02:57.4]}
8... Bg4 {[%clk 0:03:01.7]} 9. Nbd2 {[%clk 0:02:51.6]} 9... Kh8 {[%clk
0:03:01.4]} 10. a5 {[%clk 0:02:33.5]} 10... a6 {[%clk 0:02:57.6]} 11. Qb3 {[%clk
0:02:31.6]} 11... Nf4 {[%clk 0:02:50]} 12. Qxb7 {[%clk 0:02:24.3]} 12... Qd6
{[%clk 0:02:50.1]} 13. Ne4 {[%clk 0:02:09.5]} 13... Qg6 {[%clk 0:02:46.4]} 14.
Qxc6 {[%clk 0:01:58.5]} 14... Qxc6 {[%clk 0:02:30.8]} 15. Nxe5 {[%clk
0:01:59.1]} 15... Ne2+ {[%clk 0:02:25]} 16. Kh1 {[%clk 0:01:57.8]} 16... Qb7
{[%clk 0:02:25.7]} 17. Nxg4 {[%clk 0:01:46.1]} 17... Nxc1 {[%clk 0:02:26.3]} 18.
Raxc1 {[%clk 0:01:46.7]} 18... f5 {[%clk 0:02:27.4]} 19. Ne3 {[%clk 0:01:38.3]}
19... fxe4 {[%clk 0:02:27.6]} 20. Bd5 {[%clk 0:01:33.8]} 20... Qxb2 {[%clk
0:02:28.1]} 21. Bxa8 {[%clk 0:01:29.6]} 21... Rxa8 {[%clk 0:02:28.6]} 22. dxe4
{[%clk 0:01:30.8]} 22... Bc5 {[%clk 0:02:22.5]} 23. Nd5 {[%clk 0:01:25.5]} 23...
Bd6 {[%clk 0:02:09.9]} 24. f4 {[%clk 0:01:21.8]} 24... c6 {[%clk 0:02:07.1]} 25.
Nb6 {[%clk 0:01:21.1]} 25... Rf8 {[%clk 0:02:05.1]} 26. Nc4 {[%clk 0:01:19.7]}
26... Qb8 {[%clk 0:02:05.6]} 27. e5 {[%clk 0:01:15]} 27... Bc5 {[%clk
0:02:06.5]} 28. Rb1 {[%clk 0:01:06.2]} 28... Qe8 {[%clk 0:02:04.4]} 29. f5
{[%clk 0:01:05.1]} 29... h6 {[%clk 0:02:01.4]} 30. e6 {[%clk 0:01:03.2]} 30...
Qh5 {[%clk 0:02:01.9]} 31. Ne5 {[%clk 0:00:35.7]} 31... Rxf5 {[%clk 0:01:52.9]}
32. g4 {[%clk 0:00:33.2]} 32... Rxf1+ {[%clk 0:01:52.9]} 33. Rxf1 {[%clk
0:00:33.2]} 33... Qxe5 {[%clk 0:01:54.4]} 0-1

[Event "*** Titled Tuesday Blitz"]
[Site "Chess.com"]
[Date "2018.01.02"]
[Round "7"]
[White "djogrodek1"]
[Black "BillieKimbah"]
[Result "1/2-1/2"]
[WhiteElo "2471"]
[BlackElo "2728"]
[TimeControl "180+2"]
[EndTime "14:32:36 PST"]
[Termination "Game drawn by repetition"]

1. e4 {[%clk 0:03:01.9]} 1... e5 {[%clk 0:03:00.6]} 2. Nf3 {[%clk 0:03:03.1]}
2... Nc6 {[%clk 0:03:01.8]} 3. d4 {[%clk 0:03:01.7]} 3... exd4 {[%clk
0:03:02.5]} 4. Nxd4 {[%clk 0:03:03.6]} 4... Bc5 {[%clk 0:03:03.7]} 5. Nxc6
{[%clk 0:03:04]} 5... Qf6 {[%clk 0:03:04.1]} 6. Qf3 {[%clk 0:03:04.9]} 6... dxc6
{[%clk 0:03:04.2]} 7. Nc3 {[%clk 0:03:01.3]} 7... Be6 {[%clk 0:03:04.7]} 8. Qg3
{[%clk 0:02:59.4]} 8... O-O-O {[%clk 0:02:58.8]} 9. Be3 {[%clk 0:02:58.2]} 9...
Bxe3 {[%clk 0:02:51.5]} 10. Qxe3 {[%clk 0:03:00.1]} 10... Kb8 {[%clk 0:02:48.3]}
11. Bd3 {[%clk 0:02:59]} 11... g5 {[%clk 0:02:39.1]} 12. O-O-O {[%clk
0:02:50.9]} 12... Qe5 {[%clk 0:02:26.3]} 13. h4 {[%clk 0:02:16.6]} 13... g4
{[%clk 0:02:18.2]} 14. f4 {[%clk 0:02:17.5]} 14... gxf3 {[%clk 0:02:18.4]} 15.
gxf3 {[%clk 0:02:19.4]} 15... Nf6 {[%clk 0:02:18.9]} 16. Qg5 {[%clk 0:02:01.8]}
16... Nd7 {[%clk 0:02:13.2]} 17. f4 {[%clk 0:01:56.2]} 17... Qd4 {[%clk
0:02:04]} 18. f5 {[%clk 0:01:13.1]} 18... f6 {[%clk 0:01:56.4]} 19. Qg7 {[%clk
0:01:04.3]} 19... Qe3+ {[%clk 0:01:02.6]} 20. Kb1 {[%clk 0:01:04.7]} 20... Rdg8
{[%clk 0:01:02.4]} 21. Qe7 {[%clk 0:01:02.3]} 21... Re8 {[%clk 0:01:03.3]} 22.
Qg7 {[%clk 0:00:53.3]} 22... Reg8 {[%clk 0:01:03.6]} 23. Qe7 {[%clk 0:00:54.3]}
23... Re8 {[%clk 0:01:04.4]} 24. Qg7 {[%clk 0:00:55.3]} 24... Reg8 {[%clk
0:00:41.9]} 25. Qe7 {[%clk 0:00:56.2]} 1/2-1/2

[Event "*** Titled Tuesday Blitz"]
[Site "Chess.com"]
[Date "2018.01.02"]
[Round "7"]
[White "Zufi1811"]
[Black "RaphaeI"]
[Result "1-0"]
[WhiteElo "2419"]
[BlackElo "2478"]
[TimeControl "180+2"]
[EndTime "14:33:18 PST"]
[Termination "Zufi1811 won by resignation"]

1. e4 {[%clk 0:03:01.9]} 1... c5 {[%clk 0:02:59.1]} 2. Nf3 {[%clk 0:03:03.1]}
2... Nc6 {[%clk 0:02:59.3]} 3. Bb5 {[%clk 0:03:02.5]} 3... g6 {[%clk 0:03:00.4]}
4. O-O {[%clk 0:03:02.9]} 4... Bg7 {[%clk 0:03:01.3]} 5. Bxc6 {[%clk 0:03:02.7]}
5... dxc6 {[%clk 0:02:52.6]} 6. d3 {[%clk 0:03:03.6]} 6... Bg4 {[%clk
0:02:50.6]} 7. h3 {[%clk 0:03:04]} 7... Bxf3 {[%clk 0:02:50.9]} 8. Qxf3 {[%clk
0:03:05.9]} 8... Nf6 {[%clk 0:02:46.7]} 9. Nd2 {[%clk 0:03:01.3]} 9... Nd7
{[%clk 0:02:40.7]} 10. a4 {[%clk 0:02:57.7]} 10... a5 {[%clk 0:02:34.2]} 11. Qg3
{[%clk 0:02:41.1]} 11... e5 {[%clk 0:01:43.8]} 12. Nc4 {[%clk 0:02:40.7]} 12...
O-O {[%clk 0:01:44.5]} 13. f4 {[%clk 0:02:41.3]} 13... b5 {[%clk 0:01:45.6]} 14.
Nxe5 {[%clk 0:02:33.8]} 14... Nxe5 {[%clk 0:01:46.5]} 15. fxe5 {[%clk
0:02:35.7]} 15... Qe7 {[%clk 0:01:00.3]} 16. Bf4 {[%clk 0:02:30.4]} 16... Rfe8
{[%clk 0:01:01.5]} 17. Qf2 {[%clk 0:02:19.7]} 17... Ra7 {[%clk 0:01:02.7]} 18.
Be3 {[%clk 0:02:16.5]} 18... Qxe5 {[%clk 0:00:55.7]} 19. Bxc5 {[%clk 0:02:16.9]}
19... Rd7 {[%clk 0:00:44.6]} 20. d4 {[%clk 0:02:03]} 20... Qe6 {[%clk
0:00:29.2]} 21. e5 {[%clk 0:01:53]} 21... b4 {[%clk 0:00:24.8]} 22. Qf3 {[%clk
0:01:38.6]} 22... Rd5 {[%clk 0:00:18.9]} 23. Rae1 {[%clk 0:01:31.4]} 23... Qd7
{[%clk 0:00:19.1]} 24. Qg3 {[%clk 0:01:16.3]} 24... Re6 {[%clk 0:00:18.1]} 25.
c3 {[%clk 0:01:15.1]} 25... bxc3 {[%clk 0:00:11.3]} 26. Qxc3 {[%clk 0:01:13.7]}
26... Qd8 {[%clk 0:00:08.9]} 27. b4 {[%clk 0:01:09.8]} 27... axb4 {[%clk
0:00:09.4]} 28. Qxb4 {[%clk 0:01:11.7]} 28... h5 {[%clk 0:00:11.2]} 29. a5
{[%clk 0:01:12]} 29... h4 {[%clk 0:00:11.6]} 30. a6 {[%clk 0:01:13]} 1-0

[Event "*** Titled Tuesday Blitz"]
[Site "Chess.com"]
[Date "2018.01.02"]
[Round "7"]
[White "51616516516"]
[Black "AljoschaFeuerstack"]
[Result "0-1"]
[WhiteElo "2079"]
[BlackElo "1910"]
[TimeControl "180+2"]
[EndTime "14:33:29 PST"]
[Termination "AljoschaFeuerstack won by checkmate"]

1. d4 {[%clk 0:02:58.8]} 1... Nf6 {[%clk 0:02:59.6]} 2. c4 {[%clk 0:02:59.4]}
2... c5 {[%clk 0:02:59.7]} 3. d5 {[%clk 0:03:00]} 3... b5 {[%clk 0:03:00.4]} 4.
cxb5 {[%clk 0:03:01.1]} 4... a6 {[%clk 0:03:01.4]} 5. bxa6 {[%clk 0:03:02.4]}
5... e6 {[%clk 0:03:01.9]} 6. Nc3 {[%clk 0:03:00.9]} 6... exd5 {[%clk
0:03:02.6]} 7. Nxd5 {[%clk 0:03:01.7]} 7... Be7 {[%clk 0:03:03.8]} 8. Nxe7
{[%clk 0:02:57.7]} 8... Qxe7 {[%clk 0:03:05.7]} 9. Bg5 {[%clk 0:02:57.8]} 9...
Bxa6 {[%clk 0:02:50.6]} 10. Nf3 {[%clk 0:02:56.9]} 10... O-O {[%clk 0:02:49.5]}
11. e3 {[%clk 0:02:49.2]} 11... Bxf1 {[%clk 0:02:51.3]} 12. Kxf1 {[%clk
0:02:50.8]} 12... Nc6 {[%clk 0:02:49.8]} 13. g3 {[%clk 0:02:43.7]} 13... Rfb8
{[%clk 0:02:44.2]} 14. b3 {[%clk 0:02:38.7]} 14... h6 {[%clk 0:02:18.7]} 15.
Bxf6 {[%clk 0:02:22.4]} 15... Qxf6 {[%clk 0:02:19.1]} 16. Kg2 {[%clk 0:02:24]}
16... c4 {[%clk 0:01:20.4]} 17. bxc4 {[%clk 0:02:03.4]} 17... Rb2 {[%clk
0:01:19.1]} 18. Rf1 {[%clk 0:01:34.9]} 18... Ra3 {[%clk 0:01:04.8]} 19. Qxd7
{[%clk 0:00:56.8]} 19... Qxf3+ {[%clk 0:01:02.8]} 20. Kxf3 {[%clk 0:00:38.3]}
20... Ne5+ {[%clk 0:01:02.2]} 21. Kg2 {[%clk 0:00:29.1]} 21... Nxd7 {[%clk
0:01:04]} 22. Rfd1 {[%clk 0:00:30.1]} 22... Ne5 {[%clk 0:01:03.6]} 23. c5 {[%clk
0:00:25.9]} 23... Ng4 {[%clk 0:01:03.6]} 24. Rd8+ {[%clk 0:00:20.9]} 24... Kh7
{[%clk 0:01:03.9]} 25. Rc1 {[%clk 0:00:19.1]} 25... Rxf2+ {[%clk 0:01:03.8]} 26.
Kg1 {[%clk 0:00:06.7]} 26... Raxa2 {[%clk 0:01:04.2]} 27. c6 {[%clk 0:00:03.3]}
27... Rg2+ {[%clk 0:01:04.9]} 28. Kh1 {[%clk 0:00:03.1]} 28... Rxh2+ {[%clk
0:01:05.5]} 29. Kg1 {[%clk 0:00:04.4]} 29... Rag2+ {[%clk 0:01:07]} 30. Kf1
{[%clk 0:00:05.7]} 30... Nxe3+ {[%clk 0:01:08.5]} 31. Ke1 {[%clk 0:00:02.8]}
31... Rh1# {[%clk 0:01:10.4]} 0-1

[Event "*** Titled Tuesday Blitz"]
[Site "Chess.com"]
[Date "2018.01.02"]
[Round "7"]
[White "JammyDodger91"]
[Black "Maili15"]
[Result "1-0"]
[WhiteElo "2380"]
[BlackElo "2291"]
[TimeControl "180+2"]
[EndTime "14:33:40 PST"]
[Termination "JammyDodger91 won by resignation"]

1. e4 {[%clk 0:03:01.9]} 1... c5 {[%clk 0:03:00.9]} 2. d4 {[%clk 0:03:02.7]}
2... cxd4 {[%clk 0:03:01.2]} 3. c3 {[%clk 0:03:04.3]} 3... d3 {[%clk 0:03:02.5]}
4. Bxd3 {[%clk 0:03:05.2]} 4... g6 {[%clk 0:03:03.8]} 5. c4 {[%clk 0:03:06.6]}
5... Bg7 {[%clk 0:03:05.1]} 6. Nf3 {[%clk 0:03:08.1]} 6... d6 {[%clk 0:03:06.5]}
7. h3 {[%clk 0:03:08.6]} 7... Nd7 {[%clk 0:03:05.2]} 8. O-O {[%clk 0:03:08.4]}
8... Ngf6 {[%clk 0:03:06.7]} 9. Nc3 {[%clk 0:03:09.4]} 9... O-O {[%clk
0:03:08.1]} 10. Be3 {[%clk 0:03:10.2]} 10... a6 {[%clk 0:03:08.2]} 11. Rc1
{[%clk 0:03:10.1]} 11... b6 {[%clk 0:03:07.6]} 12. b3 {[%clk 0:03:10.9]} 12...
Bb7 {[%clk 0:03:06.8]} 13. Bb1 {[%clk 0:03:11.4]} 13... Rc8 {[%clk 0:03:06.6]}
14. Nd4 {[%clk 0:02:55.4]} 14... Nc5 {[%clk 0:03:03.7]} 15. f3 {[%clk
0:02:52.1]} 15... e5 {[%clk 0:02:35.6]} 16. Nc2 {[%clk 0:02:41.9]} 16... Nh5
{[%clk 0:02:32.9]} 17. Nb4 {[%clk 0:02:39.3]} 17... Nf4 {[%clk 0:02:28.5]} 18.
Kh2 {[%clk 0:02:27.1]} 18... h5 {[%clk 0:02:13.2]} 19. Nbd5 {[%clk 0:02:21.8]}
19... Nfe6 {[%clk 0:01:51.9]} 20. Ne2 {[%clk 0:02:18.9]} 20... h4 {[%clk
0:01:48.7]} 21. Qd2 {[%clk 0:02:18.6]} 21... f5 {[%clk 0:01:41.5]} 22. exf5
{[%clk 0:02:19.8]} 22... gxf5 {[%clk 0:01:41.9]} 23. f4 {[%clk 0:02:04.2]} 23...
Ne4 {[%clk 0:01:40.7]} 24. Bxe4 {[%clk 0:02:02.7]} 24... fxe4 {[%clk 0:01:42.6]}
25. f5 {[%clk 0:02:03.9]} 25... Nc5 {[%clk 0:01:28.3]} 26. Bg5 {[%clk
0:02:04.5]} 26... Qe8 {[%clk 0:01:22.2]} 27. f6 {[%clk 0:01:54.5]} 27... Bh8
{[%clk 0:01:14.3]} 28. Ne7+ {[%clk 0:01:52.4]} 28... Kf7 {[%clk 0:01:00.9]} 29.
Nxc8 {[%clk 0:01:51]} 29... Qxc8 {[%clk 0:01:02.7]} 30. Qxd6 {[%clk 0:01:49.9]}
30... Re8 {[%clk 0:00:59.6]} 31. Qxb6 {[%clk 0:01:42]} 31... Re6 {[%clk
0:00:55.7]} 32. Qa5 {[%clk 0:01:40.1]} 32... Bxf6 {[%clk 0:00:51.3]} 33. Bxf6
{[%clk 0:01:38.6]} 33... Rxf6 {[%clk 0:00:53.2]} 34. Rxf6+ {[%clk 0:01:39.7]}
34... Kxf6 {[%clk 0:00:55.1]} 35. Rf1+ {[%clk 0:01:39.9]} 35... Kg7 {[%clk
0:00:53.8]} 36. Qd2 {[%clk 0:01:37.7]} 36... Ne6 {[%clk 0:00:41.5]} 37. Qd6
{[%clk 0:01:27.3]} 37... Kg8 {[%clk 0:00:19.1]} 38. Qxe5 {[%clk 0:01:25.3]}
38... Qc7 {[%clk 0:00:19.8]} 39. Qxc7 {[%clk 0:01:24.1]} 39... Nxc7 {[%clk
0:00:21.7]} 40. Nd4 {[%clk 0:01:24.1]} 40... Bc8 {[%clk 0:00:18.2]} 41. Rf4
{[%clk 0:01:21.7]} 1-0

[Event "*** Titled Tuesday Blitz"]
[Site "Chess.com"]
[Date "2018.01.02"]
[Round "7"]
[White "littleozy"]
[Black "kleinebeer98"]
[Result "1/2-1/2"]
[WhiteElo "2395"]
[BlackElo "2510"]
[TimeControl "180+2"]
[EndTime "14:33:46 PST"]
[Termination "Game drawn by repetition"]

1. d4 {[%clk 0:03:01.9]} 1... Nf6 {[%clk 0:03:00.5]} 2. c4 {[%clk 0:03:02.3]}
2... e6 {[%clk 0:03:01.1]} 3. Nf3 {[%clk 0:03:02.5]} 3... b6 {[%clk 0:03:00.4]}
4. g3 {[%clk 0:03:02.9]} 4... Bb7 {[%clk 0:03:01.2]} 5. Bg2 {[%clk 0:03:04.1]}
5... Be7 {[%clk 0:03:01.2]} 6. O-O {[%clk 0:03:04.9]} 6... O-O {[%clk
0:03:02.2]} 7. Nc3 {[%clk 0:03:06.2]} 7... Ne4 {[%clk 0:03:01.4]} 8. Bd2 {[%clk
0:03:06]} 8... f5 {[%clk 0:03:01.9]} 9. Rc1 {[%clk 0:03:06.5]} 9... Bf6 {[%clk
0:02:53.7]} 10. d5 {[%clk 0:03:04.9]} 10... Na6 {[%clk 0:02:44.3]} 11. h4 {[%clk
0:02:34.1]} 11... h6 {[%clk 0:02:23.5]} 12. a3 {[%clk 0:01:47.8]} 12... Nac5
{[%clk 0:02:13.1]} 13. b4 {[%clk 0:01:29.7]} 13... Nxc3 {[%clk 0:02:00.3]} 14.
Bxc3 {[%clk 0:01:30]} 14... Ne4 {[%clk 0:02:01.3]} 15. Bxf6 {[%clk 0:01:22.3]}
15... Qxf6 {[%clk 0:02:03.2]} 16. Qd3 {[%clk 0:01:12.1]} 16... a5 {[%clk
0:01:59.2]} 17. Rfd1 {[%clk 0:00:59.4]} 17... axb4 {[%clk 0:01:55.7]} 18. axb4
{[%clk 0:01:00.2]} 18... Ra2 {[%clk 0:01:54.4]} 19. Nd4 {[%clk 0:00:42.5]} 19...
exd5 {[%clk 0:01:43.4]} 20. cxd5 {[%clk 0:00:38.4]} 20... Bxd5 {[%clk
0:01:30.9]} 21. Nxf5 {[%clk 0:00:21.3]} 21... Qxf5 {[%clk 0:00:47.5]} 22. Qxd5+
{[%clk 0:00:21.4]} 22... Qxd5 {[%clk 0:00:49.4]} 23. Rxd5 {[%clk 0:00:22.6]}
23... Nxf2 {[%clk 0:00:48.3]} 24. Rxd7 {[%clk 0:00:23.1]} 24... Kh8 {[%clk
0:00:41.3]} 25. Rcxc7 {[%clk 0:00:21.6]} 25... Ra1+ {[%clk 0:00:35.9]} 26. Kh2
{[%clk 0:00:21.2]} 26... Ng4+ {[%clk 0:00:36.1]} 27. Kh3 {[%clk 0:00:22.3]}
27... Nf2+ {[%clk 0:00:38]} 28. Kh2 {[%clk 0:00:23.4]} 28... Ng4+ {[%clk
0:00:31.5]} 29. Kh3 {[%clk 0:00:24.2]} 29... Nf2+ {[%clk 0:00:29.3]} 30. Kh2
{[%clk 0:00:25.1]} 30... Ng4+ {[%clk 0:00:31.2]} 31. Kh3 {[%clk 0:00:26.3]}
31... Nf2+ {[%clk 0:00:33.1]} 32. Kh2 {[%clk 0:00:27.5]} 32... Ng4+ {[%clk
0:00:35]} 33. Kh3 {[%clk 0:00:28.6]} 33... Nf2+ {[%clk 0:00:36.9]} 34. Kh2
{[%clk 0:00:29.6]} 1/2-1/2

[Event "*** Titled Tuesday Blitz"]
[Site "Chess.com"]
[Date "2018.01.02"]
[Round "7"]
[White "juniortay"]
[Black "TijanaBlagojevic"]
[Result "0-1"]
[WhiteElo "2291"]
[BlackElo "2371"]
[TimeControl "180+2"]
[EndTime "14:33:49 PST"]
[Termination "TijanaBlagojevic won by resignation"]

1. e4 {[%clk 0:03:01.9]} 1... e5 {[%clk 0:03:00.5]} 2. Nc3 {[%clk 0:03:02.1]}
2... Nf6 {[%clk 0:03:00.9]} 3. Bc4 {[%clk 0:03:02.4]} 3... Nc6 {[%clk
0:03:01.3]} 4. d3 {[%clk 0:03:02.7]} 4... Na5 {[%clk 0:03:01.4]} 5. Nge2 {[%clk
0:02:56.1]} 5... c6 {[%clk 0:03:01.7]} 6. Bb3 {[%clk 0:02:55.8]} 6... Nxb3
{[%clk 0:03:00.4]} 7. axb3 {[%clk 0:02:56.4]} 7... d6 {[%clk 0:03:02.3]} 8. O-O
{[%clk 0:02:56.5]} 8... Be7 {[%clk 0:03:03.9]} 9. f4 {[%clk 0:02:57.2]} 9... O-O
{[%clk 0:03:05.3]} 10. fxe5 {[%clk 0:02:55.4]} 10... dxe5 {[%clk 0:03:06.2]} 11.
Qe1 {[%clk 0:02:56.9]} 11... Nh5 {[%clk 0:02:58.7]} 12. Be3 {[%clk 0:02:33.5]}
12... Be6 {[%clk 0:02:48.6]} 13. Qf2 {[%clk 0:02:27.3]} 13... b6 {[%clk
0:02:45.3]} 14. Ra6 {[%clk 0:02:15.2]} 14... Qc8 {[%clk 0:02:38]} 15. Rfa1
{[%clk 0:02:12.3]} 15... Qb7 {[%clk 0:02:39]} 16. h3 {[%clk 0:02:09]} 16... f5
{[%clk 0:02:34.3]} 17. exf5 {[%clk 0:02:01.2]} 17... Rxf5 {[%clk 0:02:34.9]} 18.
Qe1 {[%clk 0:02:00.6]} 18... c5 {[%clk 0:02:30.7]} 19. Ne4 {[%clk 0:01:46.9]}
19... Bd5 {[%clk 0:02:31.3]} 20. N2c3 {[%clk 0:01:47.3]} 20... Bc6 {[%clk
0:02:32.2]} 21. g4 {[%clk 0:01:39.5]} 21... Rf3 {[%clk 0:02:32.7]} 22. gxh5
{[%clk 0:00:34.2]} 22... Qd7 {[%clk 0:02:31.3]} 23. Qf1 {[%clk 0:00:21.4]} 23...
Rxf1+ {[%clk 0:02:28.1]} 24. Rxf1 {[%clk 0:00:23.3]} 24... Qxh3 {[%clk
0:02:28.5]} 25. Bf2 {[%clk 0:00:18.7]} 25... Qg4+ {[%clk 0:02:27.2]} 26. Kh2
{[%clk 0:00:18.9]} 26... Qxh5+ {[%clk 0:02:27.9]} 27. Kg2 {[%clk 0:00:19.4]}
27... Qg4+ {[%clk 0:02:24.9]} 28. Bg3 {[%clk 0:00:20.4]} 28... Bh4 {[%clk
0:02:22.7]} 29. Rf3 {[%clk 0:00:21.5]} 29... Rf8 {[%clk 0:02:19]} 30. Re3 {[%clk
0:00:20.8]} 30... Rf7 {[%clk 0:02:05]} 31. Ra1 {[%clk 0:00:20.8]} 31... h5
{[%clk 0:02:02.6]} 32. Rae1 {[%clk 0:00:18.4]} 32... Be7 {[%clk 0:02:02.4]} 33.
Rg1 {[%clk 0:00:11.8]} 33... h4 {[%clk 0:02:03.3]} 34. Kh2 {[%clk 0:00:13.7]}
34... hxg3+ {[%clk 0:02:03.7]} 35. Rexg3 {[%clk 0:00:15.6]} 35... Qf4 {[%clk
0:02:01.4]} 36. Rg2 {[%clk 0:00:16]} 36... Kf8 {[%clk 0:01:59.6]} 37. Kh3 {[%clk
0:00:16.8]} 37... Qf5+ {[%clk 0:01:59.8]} 38. Rg4 {[%clk 0:00:17.7]} 38... g6
{[%clk 0:02:00.3]} 39. Kh2 {[%clk 0:00:15.5]} 39... Ke8 {[%clk 0:01:58]} 40.
Rxg6 {[%clk 0:00:16.1]} 40... Rh7+ {[%clk 0:01:59]} 41. Kg1 {[%clk 0:00:17.4]}
41... Kd7 {[%clk 0:01:56]} 42. R6g4 {[%clk 0:00:13.9]} 42... Rf7 {[%clk
0:01:53.1]} 43. Kh2 {[%clk 0:00:14]} 43... b5 {[%clk 0:01:53.6]} 44. Rf2 {[%clk
0:00:10.1]} 44... Qxg4 {[%clk 0:01:50.6]} 0-1

[Event "*** Titled Tuesday Blitz"]
[Site "Chess.com"]
[Date "2018.01.02"]
[Round "7"]
[White "TregubovP"]
[Black "Korchmar_Vasiliy"]
[Result "0-1"]
[WhiteElo "2510"]
[BlackElo "2539"]
[TimeControl "180+2"]
[EndTime "14:33:53 PST"]
[Termination "Korchmar_Vasiliy won by resignation"]

1. d4 {[%clk 0:03:00.6]} 1... Nf6 {[%clk 0:03:01]} 2. c4 {[%clk 0:03:02]} 2...
e6 {[%clk 0:03:01.5]} 3. Nc3 {[%clk 0:03:02.4]} 3... Bb4 {[%clk 0:03:01.8]} 4.
e3 {[%clk 0:03:03.7]} 4... O-O {[%clk 0:03:02.3]} 5. Bd3 {[%clk 0:03:05.2]} 5...
d5 {[%clk 0:03:02.8]} 6. Ne2 {[%clk 0:03:05]} 6... dxc4 {[%clk 0:02:43.7]} 7.
Bxc4 {[%clk 0:03:05.2]} 7... c5 {[%clk 0:02:45.4]} 8. a3 {[%clk 0:03:04.3]} 8...
Bxc3+ {[%clk 0:02:39.3]} 9. bxc3 {[%clk 0:03:05.1]} 9... Qc7 {[%clk 0:02:38.1]}
10. Ba2 {[%clk 0:03:05.8]} 10... b6 {[%clk 0:02:36.4]} 11. O-O {[%clk
0:03:07.3]} 11... Bb7 {[%clk 0:02:37.7]} 12. Bb2 {[%clk 0:03:07.6]} 12... Nbd7
{[%clk 0:02:31.7]} 13. Ng3 {[%clk 0:03:04.9]} 13... Rfd8 {[%clk 0:02:26.6]} 14.
Qe2 {[%clk 0:03:04.9]} 14... Nf8 {[%clk 0:02:22.2]} 15. e4 {[%clk 0:03:03.5]}
15... Ng6 {[%clk 0:02:21.1]} 16. e5 {[%clk 0:02:49.9]} 16... Nd5 {[%clk
0:02:22.1]} 17. f3 {[%clk 0:02:43.8]} 17... cxd4 {[%clk 0:02:21.2]} 18. cxd4
{[%clk 0:02:43.9]} 18... Ndf4 {[%clk 0:02:22.6]} 19. Qd2 {[%clk 0:02:38.4]}
19... Qxe5 {[%clk 0:02:21]} 20. Rfe1 {[%clk 0:02:27.2]} 20... Qg5 {[%clk
0:02:22]} 21. Bc1 {[%clk 0:02:15.7]} 21... h5 {[%clk 0:02:20.5]} 22. Ne4 {[%clk
0:02:15.3]} 22... Bxe4 {[%clk 0:02:09.5]} 23. Rxe4 {[%clk 0:02:13.7]} 23... Rac8
{[%clk 0:02:05.1]} 24. Kh1 {[%clk 0:01:56.6]} 24... h4 {[%clk 0:02:06.4]} 25.
Rxf4 {[%clk 0:01:50.6]} 25... Rxc1+ {[%clk 0:02:08]} 26. Rxc1 {[%clk 0:01:51.7]}
26... Nxf4 {[%clk 0:02:07.4]} 27. Bb1 {[%clk 0:01:34.3]} 27... g6 {[%clk
0:02:01]} 28. Rg1 {[%clk 0:01:26]} 28... e5 {[%clk 0:02:00.4]} 29. g3 {[%clk
0:01:17]} 29... Rxd4 {[%clk 0:01:53.2]} 30. Qe1 {[%clk 0:01:06.8]} 30... hxg3
{[%clk 0:01:54.1]} 31. Rxg3 {[%clk 0:01:03.6]} 31... Qh5 {[%clk 0:01:54.3]} 32.
Be4 {[%clk 0:01:01.5]} 32... Kg7 {[%clk 0:01:50.8]} 33. Rg1 {[%clk 0:01:01.9]}
33... f5 {[%clk 0:01:45.2]} 34. Bb7 {[%clk 0:01:01.9]} 34... e4 {[%clk 0:01:46]}
35. Rf1 {[%clk 0:00:59.5]} 35... Qh3 {[%clk 0:01:43.3]} 36. Rf2 {[%clk
0:01:00.4]} 36... e3 {[%clk 0:01:34]} 37. Qc3 {[%clk 0:00:56]} 37... Ne6 {[%clk
0:01:26.7]} 38. Rg2 {[%clk 0:00:37.4]} 38... f4 {[%clk 0:01:27.8]} 39. Bc8
{[%clk 0:00:36.7]} 39... Kh7 {[%clk 0:01:19]} 40. Qc2 {[%clk 0:00:28.1]} 40...
Qxg2+ {[%clk 0:01:11.1]} 0-1